Workbook

Sheet Hoja1
F2: FUNCIÓN DE REGRESIÓN POBLACIONAL VERSUS MUESTRAL
C4: Suponga una población total de 60 familias de las que conocemos su nivel de gasto en consumo familiar una vez conocidos
C5: sus niveles de renta disponible correspondientes.Nuestro objetivo es conocer cómo varía el consumo medio de estas familias
C6: a medida que varía su nivel de renta. Los datos de consumo (CO) y renta (REN) de las 60 familias son los que aparecen en el
C7: cuadro adjunto. El consumo de las 60 familias se agrupa en 10 columnas distintas de acuerdo a sus niveles de renta. Por consiguiente,
C8: cada una de las columnas recoge la distribución del gasto en consumo familiar de dichas familias condicionado a sus niveles de renta
C9: correspondiente, lo que nos permite calcular la recta de regresión poblacional.
H12: RENTA (REN)
D13: 80 | E13: 100 | F13: 120 | G13: 140 | H13: 160 | I13: 180 | J13: 200 | K13: 220 | L13: 240 | M13: 260
D14: 55 | E14: 65 | F14: 79 | G14: 80 | H14: 102 | I14: 110 | J14: 120 | K14: 135 | L14: 137 | M14: 150
C15: CONSUMO (CO) | D15: 60 | E15: 70 | F15: 84 | G15: 93 | H15: 107 | I15: 115 | J15: 136 | K15: 137 | L15: 145 | M15: 152
D16: 65 | E16: 74 | F16: 90 | G16: 95 | H16: 110 | I16: 120 | J16: 140 | K16: 140 | L16: 155 | M16: 175
D17: 70 | E17: 80 | F17: 94 | G17: 103 | H17: 116 | I17: 130 | J17: 144 | K17: 152 | L17: 165 | M17: 178
D18: 75 | E18: 85 | F18: 98 | G18: 108 | H18: 118 | I18: 135 | J18: 145 | K18: 157 | L18: 175 | M18: 180
E19: 88 | G19: 113 | H19: 125 | I19: 140 | K19: 160 | L19: 189 | M19: 185
G20: 115 | K20: 162 | M20: 191
B21: E(CONSUMO/RENTA) | D21: =AVERAGE(D14:D20) -> 65 | E21: 77 | F21: 89 | G21: 101 | H21: 113 | I21: 125 | J21: 137 | K21: 149 | L21: 161 | M21: 173
D23: Datos extraídos de Gujarati y Porter (2010), capítulo 2, página 35.
C26: A)Obtenga la función de regresión poblacional y represéntela.
D28: CO=b0 +b1 REN+u
D30: E(CO/REN)=b0 +b1 REN
D32: 65=b0 +b1 80
D33: 77=b0 +b1 100
D35: E(CO/REN)=17+0,6 REN
C38: B) Obtenga la /las funciones de regresión muestrales (algunas de ellas) y represéntelas.
C41: ©Este fichero Excel ha sido preparado por los profesores Víctor E. Barrios y Jorge Belaire en el marco del proyecto CONSOLIDA-PID, UV-SFPIE-PID-1639467

Sheet Hoja2
I1: DATOS DE LA POBLACIÓN
W2: RECTA DE REGRESIÓN POBLACIONAL, VALORES DE LA VARIABLE DEPENDIENTE POBLACIONAL Y TÉRMINO DE PERTURBACIÓN
I3: Desviaciones | J3: media | L3: Productos cruzados | Z3: GRÁFICO DE DISPERSIÓN
C4: Consumo | D4: Renta | F4: Desviaciones media | I4: al cuadrado | L4: Desviaciones media | O4: Término de error | T4: POBLACIÓN
B5: Obser. | C5: CO | D5: REN | F5: CO | G5: REN | I5: CO | J5: REN | L5: CO*REN | N5: E(CO/REN) | O5: u | S5: RENTA | T5: CONSUMO
B6: 1 | C6: 55 | D6: 80 | F6: =+C6-C$68 -> -66.2 | G6: =+D6-D$68 -> -93.66666667 | I6: =+F6^2 -> 4382.44 | J6: =+G6^2 -> 8773.444444 | L6: =+F6*G6 -> 6200.733333 | N6: =+$D$72+$D$73*D6 -> 65 | O6: =+C6-N6 -> -10 | R6: Individuos | S6: REN | T6: CO | U6: E(CO/REN)
B7: 2 | C7: 60 | D7: 80 | F7: -61.2 | G7: -93.66666667 | I7: =+F7^2 -> 3745.44 | J7: =+G7^2 -> 8773.444444 | L7: =+F7*G7 -> 5732.4 | N7: 65 | O7: =+C7-N7 -> -5 | R7: 1 | S7: 80 | T7: 55 | U7: 65
B8: 3 | C8: 65 | D8: 80 | F8: -56.2 | G8: -93.66666667 | I8: 3158.44 | J8: 8773.444444 | L8: 5264.066667 | N8: 65 | O8: 0 | R8: 2 | S8: 80 | T8: 60 | U8: 65
B9: 4 | C9: 70 | D9: 80 | F9: -51.2 | G9: -93.66666667 | I9: 2621.44 | J9: 8773.444444 | L9: 4795.733333 | N9: 65 | O9: 5 | R9: 3 | S9: 80 | T9: 65 | U9: 65
B10: 5 | C10: 75 | D10: 80 | F10: -46.2 | G10: -93.66666667 | I10: 2134.44 | J10: 8773.444444 | L10: 4327.4 | N10: 65 | O10: 10 | R10: 4 | S10: 80 | T10: 70 | U10: 65
B11: 6 | C11: 65 | D11: 100 | F11: -56.2 | G11: -73.66666667 | I11: 3158.44 | J11: 5426.777778 | L11: 4140.066667 | N11: 77 | O11: -12 | R11: 5 | S11: 80 | T11: 75 | U11: 65
B12: 7 | C12: 70 | D12: 100 | F12: -51.2 | G12: -73.66666667 | I12: 2621.44 | J12: 5426.777778 | L12: 3771.733333 | N12: 77 | O12: -7 | R12: 6 | S12: 100 | T12: 65 | U12: 77
B13: 8 | C13: 74 | D13: 100 | F13: -47.2 | G13: -73.66666667 | I13: 2227.84 | J13: 5426.777778 | L13: 3477.066667 | N13: 77 | O13: -3 | R13: 7 | S13: 100 | T13: 70 | U13: 77
B14: 9 | C14: 80 | D14: 100 | F14: -41.2 | G14: -73.66666667 | I14: 1697.44 | J14: 5426.777778 | L14: 3035.066667 | N14: 77 | O14: 3 | R14: 8 | S14: 100 | T14: 74 | U14: 77
B15: 10 | C15: 85 | D15: 100 | F15: -36.2 | G15: -73.66666667 | I15: 1310.44 | J15: 5426.777778 | L15: 2666.733333 | N15: 77 | O15: 8 | R15: 9 | S15: 100 | T15: 80 | U15: 77
B16: 11 | C16: 88 | D16: 100 | F16: -33.2 | G16: -73.66666667 | I16: 1102.24 | J16: 5426.777778 | L16: 2445.733333 | N16: 77 | O16: 11 | R16: 10 | S16: 100 | T16: 85 | U16: 77
B17: 12 | C17: 79 | D17: 120 | F17: -42.2 | G17: -53.66666667 | I17: 1780.84 | J17: 2880.111111 | L17: 2264.733333 | N17: 89 | O17: -10 | R17: 11 | S17: 100 | T17: 88 | U17: 77
B18: 13 | C18: 84 | D18: 120 | F18: -37.2 | G18: -53.66666667 | I18: 1383.84 | J18: 2880.111111 | L18: 1996.4 | N18: 89 | O18: -5 | R18: 12 | S18: 120 | T18: 79 | U18: 89
B19: 14 | C19: 90 | D19: 120 | F19: -31.2 | G19: -53.66666667 | I19: 973.44 | J19: 2880.111111 | L19: 1674.4 | N19: 89 | O19: 1 | R19: 13 | S19: 120 | T19: 84 | U19: 89
B20: 15 | C20: 94 | D20: 120 | F20: -27.2 | G20: -53.66666667 | I20: 739.84 | J20: 2880.111111 | L20: 1459.733333 | N20: 89 | O20: 5 | R20: 14 | S20: 120 | T20: 90 | U20: 89
B21: 16 | C21: 98 | D21: 120 | F21: -23.2 | G21: -53.66666667 | I21: 538.24 | J21: 2880.111111 | L21: 1245.066667 | N21: 89 | O21: 9 | R21: 15 | S21: 120 | T21: 94 | U21: 89
B22: 17 | C22: 80 | D22: 140 | F22: -41.2 | G22: -33.66666667 | I22: 1697.44 | J22: 1133.444444 | L22: 1387.066667 | N22: 101 | O22: -21 | R22: 16 | S22: 120 | T22: 98 | U22: 89
B23: 18 | C23: 93 | D23: 140 | F23: -28.2 | G23: -33.66666667 | I23: 795.24 | J23: 1133.444444 | L23: 949.4 | N23: 101 | O23: -8 | R23: 17 | S23: 140 | T23: 80 | U23: 101
B24: 19 | C24: 95 | D24: 140 | F24: -26.2 | G24: -33.66666667 | I24: 686.44 | J24: 1133.444444 | L24: 882.0666667 | N24: 101 | O24: -6 | R24: 18 | S24: 140 | T24: 93 | U24: 101
B25: 20 | C25: 103 | D25: 140 | F25: -18.2 | G25: -33.66666667 | I25: 331.24 | J25: 1133.444444 | L25: 612.7333333 | N25: 101 | O25: 2 | R25: 19 | S25: 140 | T25: 95 | U25: 101
B26: 21 | C26: 108 | D26: 140 | F26: -13.2 | G26: -33.66666667 | I26: 174.24 | J26: 1133.444444 | L26: 444.4 | N26: 101 | O26: 7 | R26: 20 | S26: 140 | T26: 103 | U26: 101
B27: 22 | C27: 113 | D27: 140 | F27: -8.2 | G27: -33.66666667 | I27: 67.24 | J27: 1133.444444 | L27: 276.0666667 | N27: 101 | O27: 12 | R27: 21 | S27: 140 | T27: 108 | U27: 101
B28: 23 | C28: 115 | D28: 140 | F28: -6.2 | G28: -33.66666667 | I28: 38.44 | J28: 1133.444444 | L28: 208.7333333 | N28: 101 | O28: 14 | R28: 22 | S28: 140 | T28: 113 | U28: 101
B29: 24 | C29: 102 | D29: 160 | F29: -19.2 | G29: -13.66666667 | I29: 368.64 | J29: 186.7777778 | L29: 262.4 | N29: 113 | O29: -11 | R29: 23 | S29: 140 | T29: 115 | U29: 101
B30: 25 | C30: 107 | D30: 160 | F30: -14.2 | G30: -13.66666667 | I30: 201.64 | J30: 186.7777778 | L30: 194.0666667 | N30: 113 | O30: -6 | R30: 24 | S30: 160 | T30: 102 | U30: 113
B31: 26 | C31: 110 | D31: 160 | F31: -11.2 | G31: -13.66666667 | I31: 125.44 | J31: 186.7777778 | L31: 153.0666667 | N31: 113 | O31: -3 | R31: 25 | S31: 160 | T31: 107 | U31: 113
B32: 27 | C32: 116 | D32: 160 | F32: -5.2 | G32: -13.66666667 | I32: 27.04 | J32: 186.7777778 | L32: 71.06666667 | N32: 113 | O32: 3 | R32: 26 | S32: 160 | T32: 110 | U32: 113
B33: 28 | C33: 118 | D33: 160 | F33: -3.2 | G33: -13.66666667 | I33: 10.24 | J33: 186.7777778 | L33: 43.73333333 | N33: 113 | O33: 5 | R33: 27 | S33: 160 | T33: 116 | U33: 113
B34: 29 | C34: 125 | D34: 160 | F34: 3.8 | G34: -13.66666667 | I34: 14.44 | J34: 186.7777778 | L34: -51.93333333 | N34: 113 | O34: 12 | R34: 28 | S34: 160 | T34: 118 | U34: 113
B35: 30 | C35: 110 | D35: 180 | F35: -11.2 | G35: 6.333333333 | I35: 125.44 | J35: 40.11111111 | L35: -70.93333333 | N35: 125 | O35: -15 | R35: 29 | S35: 160 | T35: 125 | U35: 113
B36: 31 | C36: 115 | D36: 180 | F36: -6.2 | G36: 6.333333333 | I36: 38.44 | J36: 40.11111111 | L36: -39.26666667 | N36: 125 | O36: -10 | R36: 30 | S36: 180 | T36: 110 | U36: 125
B37: 32 | C37: 120 | D37: 180 | F37: -1.2 | G37: 6.333333333 | I37: 1.44 | J37: 40.11111111 | L37: -7.6 | N37: 125 | O37: -5 | R37: 31 | S37: 180 | T37: 115 | U37: 125
B38: 33 | C38: 130 | D38: 180 | F38: =+C38-C$68 -> 8.8 | G38: =+D38-D$68 -> 6.333333333 | I38: 77.44 | J38: 40.11111111 | L38: 55.73333333 | N38: =+$D$72+$D$73*D38 -> 125 | O38: 5 | R38: 32 | S38: 180 | T38: 120 | U38: 125
B39: 34 | C39: 135 | D39: 180 | F39: 13.8 | G39: 6.333333333 | I39: 190.44 | J39: 40.11111111 | L39: 87.4 | N39: 125 | O39: 10 | R39: 33 | S39: 180 | T39: 130 | U39: 125
B40: 35 | C40: 140 | D40: 180 | F40: 18.8 | G40: 6.333333333 | I40: 353.44 | J40: 40.11111111 | L40: 119.0666667 | N40: 125 | O40: 15 | R40: 34 | S40: 180 | T40: 135 | U40: 125
B41: 36 | C41: 120 | D41: 200 | F41: -1.2 | G41: 26.33333333 | I41: 1.44 | J41: 693.4444444 | L41: -31.6 | N41: 137 | O41: -17 | R41: 35 | S41: 180 | T41: 140 | U41: 125
B42: 37 | C42: 136 | D42: 200 | F42: 14.8 | G42: 26.33333333 | I42: 219.04 | J42: 693.4444444 | L42: 389.7333333 | N42: 137 | O42: -1 | R42: 36 | S42: 200 | T42: 120 | U42: 137
B43: 38 | C43: 140 | D43: 200 | F43: 18.8 | G43: 26.33333333 | I43: 353.44 | J43: 693.4444444 | L43: 495.0666667 | N43: 137 | O43: 3 | R43: 37 | S43: 200 | T43: 136 | U43: 137
B44: 39 | C44: 144 | D44: 200 | F44: 22.8 | G44: 26.33333333 | I44: 519.84 | J44: 693.4444444 | L44: 600.4 | N44: 137 | O44: 7 | R44: 38 | S44: 200 | T44: 140 | U44: 137
B45: 40 | C45: 145 | D45: 200 | F45: 23.8 | G45: 26.33333333 | I45: 566.44 | J45: 693.4444444 | L45: 626.7333333 | N45: 137 | O45: 8 | R45: 39 | S45: 200 | T45: 144 | U45: 137
B46: 41 | C46: 135 | D46: 220 | F46: 13.8 | G46: 46.33333333 | I46: 190.44 | J46: 2146.777778 | L46: 639.4 | N46: 149 | O46: -14 | R46: 40 | S46: 200 | T46: 145 | U46: 137
B47: 42 | C47: 137 | D47: 220 | F47: 15.8 | G47: 46.33333333 | I47: 249.64 | J47: 2146.777778 | L47: 732.0666667 | N47: 149 | O47: -12 | R47: 41 | S47: 220 | T47: 135 | U47: 149
B48: 43 | C48: 140 | D48: 220 | F48: 18.8 | G48: 46.33333333 | I48: 353.44 | J48: 2146.777778 | L48: 871.0666667 | N48: 149 | O48: -9 | R48: 42 | S48: 220 | T48: 137 | U48: 149
B49: 44 | C49: 152 | D49: 220 | F49: 30.8 | G49: 46.33333333 | I49: 948.64 | J49: 2146.777778 | L49: 1427.066667 | N49: 149 | O49: 3 | R49: 43 | S49: 220 | T49: 140 | U49: 149
B50: 45 | C50: 157 | D50: 220 | F50: 35.8 | G50: 46.33333333 | I50: 1281.64 | J50: 2146.777778 | L50: 1658.733333 | N50: 149 | O50: 8 | R50: 44 | S50: 220 | T50: 152 | U50: 149
B51: 46 | C51: 160 | D51: 220 | F51: 38.8 | G51: 46.33333333 | I51: 1505.44 | J51: 2146.777778 | L51: 1797.733333 | N51: 149 | O51: 11 | R51: 45 | S51: 220 | T51: 157 | U51: 149
B52: 47 | C52: 162 | D52: 220 | F52: 40.8 | G52: 46.33333333 | I52: 1664.64 | J52: 2146.777778 | L52: 1890.4 | N52: 149 | O52: 13 | R52: 46 | S52: 220 | T52: 160 | U52: 149
B53: 48 | C53: 137 | D53: 240 | F53: 15.8 | G53: 66.33333333 | I53: 249.64 | J53: 4400.111111 | L53: 1048.066667 | N53: 161 | O53: -24 | R53: 47 | S53: 220 | T53: 162 | U53: 149
B54: 49 | C54: 145 | D54: 240 | F54: 23.8 | G54: 66.33333333 | I54: 566.44 | J54: 4400.111111 | L54: 1578.733333 | N54: 161 | O54: -16 | R54: 48 | S54: 240 | T54: 137 | U54: 161
B55: 50 | C55: 155 | D55: 240 | F55: 33.8 | G55: 66.33333333 | I55: 1142.44 | J55: 4400.111111 | L55: 2242.066667 | N55: 161 | O55: -6 | R55: 49 | S55: 240 | T55: 145 | U55: 161
B56: 51 | C56: 165 | D56: 240 | F56: 43.8 | G56: 66.33333333 | I56: 1918.44 | J56: 4400.111111 | L56: 2905.4 | N56: 161 | O56: 4 | R56: 50 | S56: 240 | T56: 155 | U56: 161
B57: 52 | C57: 175 | D57: 240 | F57: 53.8 | G57: 66.33333333 | I57: 2894.44 | J57: 4400.111111 | L57: 3568.733333 | N57: 161 | O57: 14 | R57: 51 | S57: 240 | T57: 165 | U57: 161
B58: 53 | C58: 189 | D58: 240 | F58: 67.8 | G58: 66.33333333 | I58: 4596.84 | J58: 4400.111111 | L58: 4497.4 | N58: 161 | O58: 28 | R58: 52 | S58: 240 | T58: 175 | U58: 161
B59: 54 | C59: 150 | D59: 260 | F59: 28.8 | G59: 86.33333333 | I59: 829.44 | J59: 7453.444444 | L59: 2486.4 | N59: 173 | O59: -23 | R59: 53 | S59: 240 | T59: 189 | U59: 161
B60: 55 | C60: 152 | D60: 260 | F60: 30.8 | G60: 86.33333333 | I60: 948.64 | J60: 7453.444444 | L60: 2659.066667 | N60: 173 | O60: -21 | R60: 54 | S60: 260 | T60: 150 | U60: 173
B61: 56 | C61: 175 | D61: 260 | F61: 53.8 | G61: 86.33333333 | I61: 2894.44 | J61: 7453.444444 | L61: 4644.733333 | N61: 173 | O61: 2 | R61: 55 | S61: 260 | T61: 152 | U61: 173
B62: 57 | C62: 178 | D62: 260 | F62: 56.8 | G62: 86.33333333 | I62: 3226.24 | J62: 7453.444444 | L62: 4903.733333 | N62: 173 | O62: 5 | R62: 56 | S62: 260 | T62: 175 | U62: 173
B63: 58 | C63: 180 | D63: 260 | F63: 58.8 | G63: 86.33333333 | I63: 3457.44 | J63: 7453.444444 | L63: 5076.4 | N63: 173 | O63: 7 | R63: 57 | S63: 260 | T63: 178 | U63: 173
B64: 59 | C64: 185 | D64: 260 | F64: 63.8 | G64: 86.33333333 | I64: 4070.44 | J64: 7453.444444 | L64: 5508.066667 | N64: 173 | O64: 12 | R64: 58 | S64: 260 | T64: 180 | U64: 173
B65: 60 | C65: 191 | D65: 260 | F65: 69.8 | G65: 86.33333333 | I65: 4872.04 | J65: 7453.444444 | L65: 6026.066667 | N65: 173 | O65: 18 | R65: 59 | S65: 260 | T65: 185 | U65: 173
B66: Total | C66: =SUM(C6:C65) -> 7272 | D66: =SUM(D6:D65) -> 10420 | F66: =SUM(F6:F65) -> -1.733724275e-12 | G66: =SUM(G6:G65) -> -1.676880856e-12 | I66: =SUM(I6:I65) -> 78421.6 | J66: =SUM(J6:J65) -> 197193.3333 | L66: =SUM(L6:L65) -> 118316 | N66: =SUM(N6:N65) -> 7272 | O66: =SUM(O6:O65) -> -3.126388037e-13 | R66: 60 | S66: 260 | T66: 191 | U66: 173
B68: Mean | C68: =AVERAGE(C6:C65) -> 121.2 | D68: =AVERAGE(D6:D65) -> 173.6666667 | F68: =AVERAGE(F6:F65) -> -2.889540459e-14 | G68: =AVERAGE(G6:G65) -> -2.794801427e-14 | I68: =AVERAGE(I6:I65) -> 1307.026667 | J68: =AVERAGE(J6:J65) -> 3286.555556 | L68: =AVERAGE(L6:L65) -> 1971.933333 | N68: =AVERAGE(N6:N65) -> 121.2 | O68: =AVERAGE(O6:O65) -> -5.210646729e-15
C71: Estimadores MCO de | J71: Predicted value for
C72: b0 | D72: =+C68-D73*D68 -> 17 | J72: REN | K72: = | L72: 80 | N72: =+$D$72+$D$73*L72 -> 65
C73: b1 | D73: =+L68/J68 -> 0.6
B76: ©Este fichero Excel ha sido preparado por los profesores Víctor E. Barrios y Jorge Belaire en el marco del proyecto CONSOLIDA-PID, UV-SFPIE-PID-1639467

Sheet Hoja3
B1: POBLACIÓN | F1: MUESTRA ALEATORIA 10 OBSERVACIONES | K1: MUESTRA DE 10 OBSERVACIONES
A2: Individuo | B2: Consumo | C2: Renta | F2: Individuo | G2: Consumo | H2: Renta | AP2: DATOS MUESTRALES, VARIABLE DEPENDIENTE AJUSTADA O ESTIMADA Y RESIDUOS DE ESTIMACIÓN
A3: 1 | B3: 55 | C3: 80 | E3: 1 | F3: 1 | G3: =VLOOKUP(F3,$A$3:$C$62,2,FALSE) -> 55 | H3: =VLOOKUP(F3,$A$3:$C$62,3,FALSE) -> 80 | R3: Desviaciones | S3: media | U3: Productos cruzados | W3: Valores | AA3: Desviaciones media | AC3: Estimaciones para distintas muestras | AR3: GRÁFICO DE DISPERSIÓN
A4: 2 | B4: 60 | C4: 80 | E4: 2 | F4: =RANDBETWEEN(1,60) -> 20 | G4: 103 | H4: 140 | L4: Consumo | M4: Renta | O4: Desviaciones media | R4: al cuadrado | U4: Desviaciones media | W4: Ajustados | X4: Residuos | Y4: Residuos cuadrado | Z4: Desviaciones media | AA4: al cuadrado del | AC4: beta_0 | AD4: beta_1 | AI4: Gráfico de dispersión | AP4: RECTA DE REGRESIÓN MUESTRAL 1 | AV4: RECTA DE REGRESIÓN MUESTRAL 2
A5: 3 | B5: 65 | C5: 80 | E5: 3 | F5: 55 | G5: 152 | H5: 260 | K5: Obser. | L5: CO | M5: REN | O5: CO | P5: REN | R5: CO | S5: REN | U5: CO*REN | W5: CO | Z5: CO ajustado | AA5: CO ajustado | AC5: =M22 -> 22.6519337 | AD5: =M23 -> 0.5611878453 | AI5: Obser. | AJ5: REN | AK5: CO | AL5: CO ajustado | AP5: REN | AQ5: CO | AR5: CO ajustado | AV5: REN | AW5: CO | AX5: CO ajustado
A6: 4 | B6: 70 | C6: 80 | E6: 4 | F6: 45 | G6: 157 | H6: 220 | K6: 1 | L6: =G3 -> 55 | M6: 80 | O6: =+L6-L$18 -> -75.4 | P6: =+M6-M$18 -> -112 | R6: =+O6^2 -> 5685.16 | S6: =+P6^2 -> 12544 | U6: =+O6*P6 -> 8444.8 | W6: =+$M$22+$M$23*M6 -> 67.54696133 | X6: =+L6-W6 -> -12.54696133 | Y6: =+X6^2 -> 157.4262385 | Z6: =(W6-L$18) -> -62.85303867 | AA6: =(W6-L$18)^2 -> 3950.504471 | AF6: Macro 1 | AG6: Ctrl+a | AI6: 1 | AJ6: =M6 -> 80 | AK6: =L6 -> 55 | AL6: =W6 -> 67.54696133 | DT6: =(DQ6-DS6) -> 0 | DU6: =(DQ6-DR6) -> 0
A7: 5 | B7: 75 | C7: 80 | E7: 5 | F7: 29 | G7: 125 | H7: 160 | K7: =(K6+1) -> 2 | L7: =G4 -> 103 | M7: =H4 -> 140 | O7: -27.4 | P7: -52 | R7: 750.76 | S7: 2704 | U7: 1424.8 | W7: 101.218232 | X7: 1.781767956 | Y7: 3.174697048 | Z7: -29.18176796 | AA7: 851.575581 | AF7: Macro2 | AG7: Ctrl+b | AI7: =(AI6+1) -> 2 | AJ7: =M7 -> 140 | AK7: =L7 -> 103 | AL7: 101.218232 | DT7: =(DQ7-DS7) -> 0 | DU7: =(DQ7-DR7) -> 0
A8: 6 | B8: 65 | C8: 100 | E8: 6 | F8: 56 | G8: 175 | H8: 260 | K8: =(K7+1) -> 3 | L8: 152 | M8: 260 | O8: 21.6 | P8: 68 | R8: 466.56 | S8: 4624 | U8: 1468.8 | W8: 168.5607735 | X8: -16.56077348 | Y8: 274.2592183 | Z8: 38.16077348 | AA8: 1456.244633 | AF8: Macro 3 | AG8: Ctrl+c | AI8: =(AI7+1) -> 3 | AJ8: 260 | AK8: 152 | AL8: 168.5607735 | DT8: 0 | DU8: 0
A9: 7 | B9: 70 | C9: 100 | E9: 7 | F9: 41 | G9: 135 | H9: 220 | K9: 4 | L9: 157 | M9: 220 | O9: 26.6 | P9: 28 | R9: 707.56 | S9: 784 | U9: 744.8 | W9: 146.1132597 | X9: 10.88674033 | Y9: 118.521115 | Z9: 15.71325967 | AA9: 246.9065294 | AF9: Macro 4 | AG9: Ctrl+d | AI9: 4 | AJ9: 220 | AK9: 157 | AL9: 146.1132597 | DT9: 0 | DU9: 0
A10: 8 | B10: 74 | C10: 100 | E10: 8 | F10: 29 | G10: 125 | H10: 160 | K10: 5 | L10: 125 | M10: 160 | O10: -5.4 | P10: -32 | R10: 29.16 | S10: 1024 | U10: 172.8 | W10: 112.441989 | X10: 12.55801105 | Y10: 157.7036415 | Z10: -17.95801105 | AA10: 322.4901609 | AI10: 5 | AJ10: 160 | AK10: 125 | AL10: 112.441989 | DT10: 0 | DU10: 0
A11: 9 | B11: 80 | C11: 100 | E11: 9 | F11: 36 | G11: 120 | H11: 200 | K11: 6 | L11: 175 | M11: 260 | O11: 44.6 | P11: 68 | R11: 1989.16 | S11: 4624 | U11: 3032.8 | W11: 168.5607735 | X11: 6.439226519 | Y11: 41.46363817 | Z11: 38.16077348 | AA11: 1456.244633 | AI11: 6 | AJ11: 260 | AK11: 175 | AL11: 168.5607735 | DT11: 0 | DU11: 0
A12: 10 | B12: 85 | C12: 100 | E12: 10 | F12: 45 | G12: 157 | H12: 220 | K12: 7 | L12: 135 | M12: 220 | O12: 4.6 | P12: 28 | R12: 21.16 | S12: 784 | U12: 128.8 | W12: 146.1132597 | X12: -11.11325967 | Y12: 123.5045405 | Z12: 15.71325967 | AA12: 246.9065294 | AI12: 7 | AJ12: 220 | AK12: 135 | AL12: 146.1132597 | DT12: 0 | DU12: 0
A13: 11 | B13: 88 | C13: 100 | K13: 8 | L13: 125 | M13: 160 | O13: -5.4 | P13: -32 | R13: 29.16 | S13: 1024 | U13: 172.8 | W13: 112.441989 | X13: 12.55801105 | Y13: 157.7036415 | Z13: -17.95801105 | AA13: 322.4901609 | AI13: 8 | AJ13: 160 | AK13: 125 | AL13: 112.441989 | DT13: 0 | DU13: 0
A14: 12 | B14: 79 | C14: 120 | K14: 9 | L14: 120 | M14: 200 | O14: -10.4 | P14: 8 | R14: 108.16 | S14: 64 | U14: -83.2 | W14: 134.8895028 | X14: -14.88950276 | Y14: 221.6972925 | Z14: 4.489502762 | AA14: 20.15563505 | AI14: 9 | AJ14: 200 | AK14: 120 | AL14: 134.8895028 | DT14: 0 | DU14: 0
A15: 13 | B15: 84 | C15: 120 | K15: 10 | L15: 157 | M15: 220 | O15: 26.6 | P15: 28 | R15: 707.56 | S15: 784 | U15: 744.8 | W15: 146.1132597 | X15: 10.88674033 | Y15: 118.521115 | Z15: 15.71325967 | AA15: 246.9065294 | AI15: 10 | AJ15: 220 | AK15: 157 | AL15: 146.1132597 | DT15: 0 | DU15: 0
A16: 14 | B16: 90 | C16: 120 | K16: Total | L16: =SUM(L6:L15) -> 1304 | M16: =SUM(M6:M15) -> 1920 | O16: =SUM(O6:O15) -> -5.684341886e-14 | P16: =SUM(P6:P15) -> 0 | R16: =SUM(R6:R15) -> 10494.4 | S16: =SUM(S6:S15) -> 28960 | U16: =SUM(U6:U15) -> 16252 | W16: =SUM(W6:W15) -> 1304 | X16: =SUM(X6:X15) -> -1.278976924e-13 | Y16: =SUM(Y6:Y15) -> 1373.975138 | Z16: =SUM(Z6:Z15) -> 7.105427358e-14 | AA16: =SUM(AA6:AA15) -> 9120.424862
A17: 15 | B17: 94 | C17: 120
A18: 16 | B18: 98 | C18: 120 | K18: Mean | L18: =AVERAGE(L6:L15) -> 130.4 | M18: =AVERAGE(M6:M15) -> 192 | O18: =AVERAGE(O6:O15) -> -5.684341886e-15 | P18: =AVERAGE(P6:P15) -> 0 | R18: =AVERAGE(R6:R15) -> 1049.44 | S18: =AVERAGE(S6:S15) -> 2896 | U18: =AVERAGE(U6:U15) -> 1625.2 | W18: =AVERAGE(W6:W15) -> 130.4 | X18: =AVERAGE(X6:X15) -> -1.278976924e-14 | Y18: =AVERAGE(Y6:Y15) -> 137.3975138 | Z18: =AVERAGE(Z6:Z15) -> 7.105427358e-15 | AA18: =AVERAGE(AA6:AA15) -> 912.0424862
A19: 17 | B19: 80 | C19: 140
A20: 18 | B20: 93 | C20: 140 | O20: Error estándar de la
A21: 19 | B21: 95 | C21: 140 | L21: Estimadores MCO de | O21: regresión | S21: Predicted value for
A22: 20 | B22: 103 | C22: 140 | M22: =+L18-M23*M18 -> 22.6519337 | P22: =(+Y16/P$23)^0.5 -> 13.10522385 | S22: REN | T22: = | U22: 80 | W22: =+$M$22+$M$23*U22 -> 67.54696133 | Z22: RESUMEN
A23: 21 | B23: 108 | C23: 140 | M23: =+U18/S18 -> 0.5611878453 | O23: n-k-1 | P23: =(10-2) -> 8 | S23: R2 | T23: = | U23: =1-Y18/R18 -> 0.8690753985 | Z23: beta0 | AA23: =M22 -> 22.6519337
A24: 22 | B24: 113 | C24: 140 | Z24: beta1 | AA24: =M23 -> 0.5611878453
A25: 23 | B25: 115 | C25: 140 | K25: Error estándar de los estimadores | Z25: se(beta0) | AA25: =M27 -> 15.35565523
A26: 24 | B26: 102 | C26: 160 | Z26: se(beta1) | AA26: =M29 -> 0.07700965272
A27: 25 | B27: 107 | C27: 160 | M27: =+P$22*((S$18+M$18^2)/S$16)^0.5 -> 15.35565523 | Z27: error estandar de
A28: 26 | B28: 110 | C28: 160 | Z28: la regresion | AA28: =P22 -> 13.10522385
A29: 27 | B29: 116 | C29: 160 | M29: =P$22*(1/S$16)^0.5 -> 0.07700965272 | Z29: R-cuadrado | AA29: =U23 -> 0.8690753985
A30: 28 | B30: 118 | C30: 160 | O30: donde | Z30: Media de y | AA30: =L18 -> 130.4
A31: 29 | B31: 125 | C31: 160 | Z31: Desviación tipica de y | AA31: =S47 -> 34.14739294
A32: 30 | B32: 110 | C32: 180
A33: 31 | B33: 115 | C33: 180
A34: 32 | B34: 120 | C34: 180
A35: 33 | B35: 130 | C35: 180
A36: 34 | B36: 135 | C36: 180
A37: 35 | B37: 140 | C37: 180
A38: 36 | B38: 120 | C38: 200
A39: 37 | B39: 136 | C39: 200
A40: 38 | B40: 140 | C40: 200
A41: 39 | B41: 144 | C41: 200
A42: 40 | B42: 145 | C42: 200 | S42: =(R16/9) -> 1166.044444 | U42: En gretl o Eviews
A43: 41 | B43: 135 | C43: 220
A44: 42 | B44: 137 | C44: 220
A45: 43 | B45: 140 | C45: 220
A46: 44 | B46: 152 | C46: 220
A47: 45 | B47: 157 | C47: 220 | S47: =SQRT(S42) -> 34.14739294 | U47: En gretl o Eviews
A48: 46 | B48: 160 | C48: 220
A49: 47 | B49: 162 | C49: 220
A50: 48 | B50: 137 | C50: 240
A51: 49 | B51: 145 | C51: 240
A52: 50 | B52: 155 | C52: 240
A53: 51 | B53: 165 | C53: 240
A54: 52 | B54: 175 | C54: 240
A55: 53 | B55: 189 | C55: 240
A56: 54 | B56: 150 | C56: 260
A57: 55 | B57: 152 | C57: 260
A58: 56 | B58: 175 | C58: 260
A59: 57 | B59: 178 | C59: 260
A60: 58 | B60: 180 | C60: 260
A61: 59 | B61: 185 | C61: 260
A62: 60 | B62: 191 | C62: 260
B69: ©Este fichero Excel ha sido preparado por los profesores Víctor E. Barrios y Jorge Belaire en el marco del proyecto CONSOLIDA-PID, UV-SFPIE-PID-1639467
AC449: =AVERAGE(AC349:AC448) ->  | AD449: =AVERAGE(AD349:AD448) -> 
AC740: =AVERAGE(AC640:AC739) ->  | AD740: =AVERAGE(AD640:AD739) -> 
AC971: =AVERAGE(AC871:AC970) ->  | AD971: =AVERAGE(AD871:AD970) -> 

Sheet Hoja4
I1: RECTA DE REGRESIÓN POBLACIONAL VERSUS MUESTRAL
J2: CONSUMO | K2: CONSUMO | L2: PROMEDIO
I3: RENTA | J3: MUESTRAL | K3: ESTIMADO O AJUSTADO | L3: CONSUMO POBLACION | M3: TÉRMINO ERROR | N3: RESIDUO
B4: REN | C4: E(CO/REN) | D4: REN | E4: CO | F4: CO ajustado | I4: REN | J4: CO | K4: CO ajustado | L4: E(CO/REN) | M4: U | N4: U ESTIMADO
B5: 80 | C5: 65 | D5: =Hoja3!AJ6 -> 80 | E5: =Hoja3!AK6 -> 55 | F5: =Hoja3!AL6 -> 67.54696133 | M5: =(J5-L5) -> 0 | N5: =(J5-K5) -> 0
B6: 100 | C6: 77 | D6: =Hoja3!AJ7 -> 140 | E6: =Hoja3!AK7 -> 103 | F6: =Hoja3!AL7 -> 101.218232 | M6: =(J6-L6) -> 0 | N6: =(J6-K6) -> 0
B7: 120 | C7: 89 | D7: =Hoja3!AJ8 -> 260 | E7: =Hoja3!AK8 -> 152 | F7: =Hoja3!AL8 -> 168.5607735 | M7: 0 | N7: 0
B8: 140 | C8: 101 | D8: =Hoja3!AJ9 -> 220 | E8: =Hoja3!AK9 -> 157 | F8: =Hoja3!AL9 -> 146.1132597 | M8: 0 | N8: 0
B9: 160 | C9: 113 | D9: =Hoja3!AJ10 -> 160 | E9: =Hoja3!AK10 -> 125 | F9: =Hoja3!AL10 -> 112.441989 | M9: 0 | N9: 0
B10: 180 | C10: 125 | D10: =Hoja3!AJ11 -> 260 | E10: =Hoja3!AK11 -> 175 | F10: =Hoja3!AL11 -> 168.5607735 | M10: 0 | N10: 0
B11: 200 | C11: 137 | D11: =Hoja3!AJ12 -> 220 | E11: =Hoja3!AK12 -> 135 | F11: =Hoja3!AL12 -> 146.1132597 | M11: 0 | N11: 0
B12: 220 | C12: 149 | D12: =Hoja3!AJ13 -> 160 | E12: =Hoja3!AK13 -> 125 | F12: =Hoja3!AL13 -> 112.441989 | M12: 0 | N12: 0
B13: 240 | C13: 161 | D13: =Hoja3!AJ14 -> 200 | E13: =Hoja3!AK14 -> 120 | F13: =Hoja3!AL14 -> 134.8895028 | M13: 0 | N13: 0
B14: 260 | C14: 173 | D14: =Hoja3!AJ15 -> 220 | E14: =Hoja3!AK15 -> 157 | F14: =Hoja3!AL15 -> 146.1132597 | M14: 0 | N14: 0
A65: ©Este fichero Excel ha sido preparado por los profesores Víctor E. Barrios y Jorge Belaire en el marco del proyecto CONSOLIDA-PID, UV-SFPIE-PID-1639467
